fUST/lending_fUST_20241213
["ID","MTS","AMOUNT","RATE_DAILY","PERIOD"]
[345117116,1734033038042,-752.826596,0.00027198,7]
[345117117,1734033038048,-752.826596,0.00027198,7]
[345117118,1734033038055,-151.0,0.00027198,7]
[345117119,1734033038063,-151.0,0.00027198,7]
[345117120,1734033038069,-618.095163,0.00027198,7]
[345117121,1734033038078,-618.095163,0.00027198,7]
[345117122,1734033038085,-151.0,0.00027198,7]
[345117123,1734033038093,-151.0,0.00027198,7]
[345117124,1734033038101,-151.0,0.00027198,7]
[345117125,1734033038110,-151.0,0.00027198,7]
[345117126,1734033038118,-151.0,0.00027198,7]
[345117127,1734033038127,-313.466834,0.00027198,7]
[345117128,1734033038135,-313.466834,0.00027198,7]
[345117129,1734033038143,-346.518772,0.00027198,7]
[345117130,1734033038154,-346.518772,0.00027198,7]
[345117131,1734033038161,-229.66261,0.00027198,7]
[345117132,1734033038169,-281.736848,0.00027198,7]
[345117133,1734033038176,-281.736848,0.00027198,7]
[345117134,1734033038184,-229.66261,0.00027198,7]
[345117135,1734033038191,-198.957311,0.00027198,7]
[345117136,1734033038199,-734.440787,0.00027198,7]
[345117137,1734033038206,-198.957311,0.00027198,7]
[345117139,1734033038215,-734.440787,0.00027198,7]
[345117141,1734033038224,-235.51455289,0.00027199,2]
[345117143,1734033038234,-500.0,0.00027199,2]
[345117145,1734033038243,-312.96051092,0.00027199,2]
[345117147,1734033038253,-236.58965537,0.00027199,2]
[345117149,1734033038263,-37407.32533354,0.000272,2]
[345117151,1734033038272,-360.33889719,0.000272,2]
[345117154,1734033038282,-50000.0,0.000272,2]
[345117156,1734033038291,-81551.0,0.000272,7]
[345117158,1734033038300,-151.0,0.000272,7]
[345117160,1734033038310,-151.0,0.000272,7]
[345117162,1734033038319,-151.0,0.000272,7]
[345117164,1734033038328,-151.0,0.000272,7]
[345117166,1734033038338,-151.0,0.000272,7]
[345117168,1734033038348,-299.940531,0.000272,7]
[345117170,1734033038357,-151.0,0.000272,7]
[345117172,1734033038367,-151.0,0.000272,7]
[345117174,1734033038376,-151.0,0.000272,7]
[345117176,1734033038386,-255.873168,0.000272,7]
[345117178,1734033038400,-707.80757071,0.000272,7]
[345117230,1734033038949,-45.01902529,0.000272,7]
[345117231,1734033038964,-752.826596,0.000272,7]
[345117233,1734033038980,-50.62936871,0.000272,7]
[345117236,1734033038998,-469.42,0.000272,7]
[345117245,1734033039874,-232.77722729,0.000272,7]
[345117246,1734033039884,-752.826596,0.000272,7]
[345117247,1734033039898,-752.826596,0.000272,7]
[345117248,1734033039908,-752.826596,0.000272,7]
[345117249,1734033039918,-752.826596,0.000272,7]
[345117250,1734033039928,-752.826596,0.000272,7]
[345117251,1734033039937,-151.0,0.000272,7]
[345117252,1734033039948,-151.0,0.000272,7]
[345117254,1734033039957,-151.0,0.000272,7]
[345117256,1734033039967,-500.0,0.000272,2]
[345117258,1734033039977,-151.0,0.000272,7]
[345117260,1734033039988,-500.0,0.000272,2]
[345117261,1734033039998,-151.0,0.000272,7]
[345117262,1734033040008,-291.595795,0.000272,7]
[345117263,1734033040018,-157.55045125,0.000272,2]
[345117264,1734033040027,-618.095163,0.000272,7]
[345117265,1734033040038,-618.095163,0.000272,7]
[345117266,1734033040047,-618.095163,0.000272,7]
[345117267,1734033040057,-618.095163,0.000272,7]
[345117268,1734033040067,-618.095163,0.000272,7]
[345117269,1734033040077,-618.095163,0.000272,7]
[345117270,1734033040088,-618.095163,0.000272,7]
[345117271,1734033040098,-618.095163,0.000272,7]
[345117272,1734033040108,-151.0,0.000272,7]
[345117273,1734033040118,-151.0,0.000272,7]
[345117274,1734033040128,-151.0,0.000272,7]
[345117276,1734033040138,-151.0,0.000272,7]
[345117277,1734033040152,-151.0,0.000272,7]
[345117278,1734033040161,-151.0,0.000272,7]
[345117279,1734033040171,-151.0,0.000272,7]
[345117280,1734033040181,-151.0,0.000272,7]
[345117281,1734033040191,-151.0,0.000272,7]
[345117282,1734033040201,-151.0,0.000272,7]
[345117283,1734033040210,-151.0,0.000272,7]
[345117284,1734033040220,-151.0,0.000272,7]
[345117285,1734033040230,-167.096964,0.000272,7]
[345117286,1734033040240,-313.466834,0.000272,7]
[345117287,1734033040250,-313.466834,0.000272,7]
[345117288,1734033040260,-313.466834,0.000272,7]
[345117291,1734033040270,-313.466834,0.000272,7]
[345117292,1734033040281,-313.466834,0.000272,7]
[345117293,1734033040291,-313.466834,0.000272,7]
[345117294,1734033040301,-313.466834,0.000272,7]
[345117295,1734033040312,-313.466834,0.000272,7]
[345117296,1734033040322,-346.518772,0.000272,7]
[345117297,1734033040333,-346.518772,0.000272,7]
[345117298,1734033040343,-346.518772,0.000272,7]
[345117299,1734033040353,-346.518772,0.000272,7]
[345117300,1734033040365,-346.518772,0.000272,7]
[345117301,1734033040375,-346.518772,0.000272,7]
[345117303,1734033040385,-346.518772,0.000272,7]
[345117305,1734033040397,-346.518772,0.000272,7]
[345117306,1734033040410,-500.0,0.000272,2]
[345117308,1734033040420,-500.0,0.000272,2]
[345117310,1734033040430,-229.66261,0.000272,7]
[345117311,1734033040439,-281.736848,0.000272,7]
[345117312,1734033040448,-229.66261,0.000272,7]
[345117313,1734033040457,-281.736848,0.000272,7]
[345117314,1734033040466,-229.66261,0.000272,7]
[345117315,1734033040476,-281.736848,0.000272,7]
[345117316,1734033040486,-281.736848,0.000272,7]
[345117317,1734033040495,-229.66261,0.000272,7]
[345117318,1734033040505,-281.736848,0.000272,7]
[345117319,1734033040515,-229.66261,0.000272,7]
[345117320,1734033040524,-281.736848,0.000272,7]
[345117321,1734033040534,-229.66261,0.000272,7]
[345117322,1734033040544,-281.736848,0.000272,7]
[345117324,1734033040553,-229.66261,0.000272,7]
[345117326,1734033040563,-281.736848,0.000272,7]
[345117328,1734033040573,-229.66261,0.000272,7]
[345117329,1734033040582,-198.957311,0.000272,7]
[345117331,1734033040591,-198.957311,0.000272,7]
[345117333,1734033040601,-198.957311,0.000272,7]
[345117334,1734033040611,-198.957311,0.000272,7]
[345117335,1734033040620,-734.440787,0.000272,7]
[345117336,1734033040631,-198.957311,0.000272,7]
[345117337,1734033040652,-734.440787,0.000272,7]
[345117338,1734033040663,-734.440787,0.000272,7]
[345117339,1734033040679,-198.957311,0.000272,7]
[345117340,1734033040688,-734.440787,0.000272,7]
[345117341,1734033040699,-198.957311,0.000272,7]
[345117342,1734033040709,-198.957311,0.000272,7]
[345117343,1734033040720,-734.440787,0.000272,7]
[345117344,1734033040729,-734.440787,0.000272,7]
[345117345,1734033040739,-734.440787,0.000272,7]
[345117346,1734033040750,-734.440787,0.000272,7]
[345117347,1734033040760,-301.056986,0.000272,2]
[345117348,1734033040770,-151.0,0.0002722,7]
[345117349,1734033040780,-151.0,0.0002722,7]
[345117350,1734033040789,-163.54118156,0.00027296,7]
[345117351,1734033040799,-163.54118156,0.00027296,7]
[345117352,1734033040808,-163.54118156,0.00027296,7]
[345117353,1734033040818,-163.54118156,0.00027296,7]
[345117354,1734033040828,-163.54118156,0.00027296,7]
[345117355,1734033040838,-163.54118156,0.00027296,7]
[345117357,1734033040848,-163.54118156,0.00027296,7]
[345117359,1734033040858,-163.54118156,0.00027296,7]
[345117362,1734033040867,-163.54118156,0.00027296,7]
[345117365,1734033040877,-163.54118156,0.00027296,7]
[345117366,1734033040886,-163.54,0.00027296,7]
[345117368,1734033040902,-158.73114681,0.00027296,7]
[345117370,1734033040914,-158.73114681,0.00027296,7]
[345117372,1734033040926,-158.73114681,0.00027296,7]
[345117373,1734033040936,-158.73114681,0.00027296,7]
[345117374,1734033040945,-158.73114681,0.00027296,7]
[345117375,1734033040955,-158.73114681,0.00027296,7]
[345117376,1734033040964,-158.73114681,0.00027296,7]
[345117377,1734033040974,-158.73114681,0.00027296,7]
[345117378,1734033040984,-158.73114681,0.00027296,7]
[345117379,1734033040994,-158.73114681,0.00027296,7]
[345117380,1734033041003,-158.73114681,0.00027296,7]
[345117381,1734033041013,-158.73114681,0.00027296,7]
[345117382,1734033041023,-158.73114681,0.00027296,7]
[345117383,1734033041033,-158.73114681,0.00027296,7]
[345117384,1734033041043,-158.73114681,0.00027296,7]
[345117385,1734033041054,-158.73114681,0.00027296,7]
[345117386,1734033041064,-151.0,0.00027296,7]
[345117387,1734033041074,-313.466834,0.00027296,7]
[345117388,1734033041083,-313.466834,0.00027296,7]
[345117389,1734033041092,-346.518772,0.00027296,7]
[345117390,1734033041103,-346.518772,0.00027296,7]
[345117391,1734033041112,-281.736848,0.00027296,7]
[345117392,1734033041123,-229.66261,0.00027296,7]
[345117393,1734033041133,-281.736848,0.00027296,7]
[345117394,1734033041143,-229.66261,0.00027296,7]
[345117395,1734033041155,-158.73,0.00027297,7]
[345117396,1734033041166,-156.76,0.00027297,7]
[345117397,1734033041176,-666.0,0.00027297,2]
[345117398,1734033041186,-1137.68,0.00027297,21]
[345117399,1734033041196,-151.0,0.00027297,7]
[345117400,1734033041206,-618.095163,0.00027297,7]
[345117401,1734033041215,-618.095163,0.00027297,7]
[345117402,1734033041225,-187.0,0.000273,2]
[345117403,1734033041235,-151.0,0.000273,20]
[345117404,1734033041245,-151.0,0.000273,7]
[345117405,1734033041254,-151.0,0.000273,7]
[345117406,1734033041265,-752.826596,0.000273,7]
[345117407,1734033041275,-752.826596,0.000273,7]
[345117408,1734033041285,-151.0,0.000273,7]
[345117409,1734033041295,-151.0,0.000273,7]
[345117410,1734033041305,-346.518772,0.000273,7]
[345117411,1734033041315,-346.518772,0.000273,7]
[345117412,1734033041325,-281.736848,0.000273,7]
[345117413,1734033041335,-229.66261,0.000273,7]
[345117414,1734033041345,-281.736848,0.000273,7]
[345117415,1734033041354,-229.66261,0.000273,7]
[345117416,1734033041364,-198.957311,0.000273,7]
[345117417,1734033041374,-734.440787,0.000273,7]
[345117418,1734033041383,-198.957311,0.000273,7]
[345117419,1734033041393,-734.440787,0.000273,7]
[345117420,1734033041406,-3441.37991679,0.000273,2]
[345117421,1734033041416,-3441.37991678,0.000273,2]
[345117422,1734033041426,-3441.37991678,0.000273,2]
[345117423,1734033041435,-3441.37991678,0.000273,2]
[345117424,1734033041445,-278.65060968,0.000273,2]
[345117425,1734033041454,-278.65060968,0.000273,2]
[345117426,1734033041463,-358.83417664,0.00027373,2]
[345117427,1734033041474,-500.0,0.00027373,2]
[345117428,1734033041484,-516.37757976,0.00027373,2]
[345117429,1734033041494,-500.0,0.00027373,2]
[345117430,1734033041503,-500.0,0.00027373,2]
[345117431,1734033041513,-501.53001245,0.00027373,2]
[345117432,1734033041522,-265.42927021,0.00027373,2]
[345117433,1734033041532,-500.0,0.00027373,2]
[345117434,1734033041542,-469.61402128,0.00027373,2]
[345117435,1734033041552,-500.0,0.00027373,2]
[345117436,1734033041562,-151.0,0.00027373,7]
[345117437,1734033041572,-752.826596,0.00027373,7]
[345117438,1734033041582,-752.826596,0.00027373,7]
[345117439,1734033041592,-151.0,0.00027373,7]
[345117440,1734033041602,-618.095163,0.00027373,7]
[345117441,1734033041612,-618.095163,0.00027373,7]
[345117442,1734033041622,-203.131186,0.00027373,7]
[345117443,1734033041632,-151.0,0.00027373,7]
[345117444,1734033041642,-151.0,0.00027373,7]
[345117445,1734033041660,-313.466834,0.00027373,7]
[345117446,1734033041670,-313.466834,0.00027373,7]
[345117447,1734033041679,-198.957311,0.00027373,7]
[345117448,1734033041785,-734.440787,0.00027373,7]
[345117449,1734033041798,-198.957311,0.00027373,7]
[345117450,1734033041809,-734.440787,0.00027373,7]
[345117451,1734033041819,-24805.99031402,0.00027396,5]
[345117452,1734033041861,-154799.9999998,0.00027396,5]
[345117453,1734033041874,-11381.00000122,0.00027396,5]
[345117454,1734033042032,-181.306,0.00025521,2]
[345117455,1734033042042,-151.0,0.00027198,7]
[345117456,1734033042052,-151.0,0.000272,7]
[345117457,1734033042062,-99166.694,0.00027396,5]
[345117458,1734033042075,-9167.23396026,0.00027396,5]
[345117459,1734033042084,-151.0,0.00027396,7]
[345117460,1734033042093,-151.0,0.00027396,7]
[345117461,1734033042103,-752.826596,0.00027396,7]
[345117462,1734033042112,-752.826596,0.00027396,7]
[345117463,1734033042122,-151.0,0.00027396,7]
[345117464,1734033042132,-618.095163,0.00027396,7]
[345117465,1734033042142,-618.095163,0.00027396,7]
[345117466,1734033042155,-151.0,0.00027396,7]
[345117467,1734033042165,-151.0,0.00027396,7]
[345117468,1734033042175,-313.466834,0.00027396,7]
[345117469,1734033042185,-313.466834,0.00027396,7]
[345117470,1734033042194,-346.518772,0.00027396,7]
[345117471,1734033042204,-346.518772,0.00027396,7]
[345117472,1734033042213,-281.736848,0.00027396,7]
[345117473,1734033042223,-229.66261,0.00027396,7]
[345117474,1734033042232,-281.736848,0.00027396,7]
[345117475,1734033042241,-229.66261,0.00027396,7]
[345117476,1734033042251,-198.957311,0.00027396,7]
[345117477,1734033042261,-734.440787,0.00027396,7]
[345117478,1734033042272,-198.957311,0.00027396,7]
[345117479,1734033042282,-734.440787,0.00027396,7]
[345117480,1734033042292,-2000.0,0.00027397,7]
[345117481,1734033042301,-500.0,0.00027397,2]
[345117482,1734033042310,-507.88855536,0.00027397,2]
[345117483,1734033042320,-500.0,0.00027397,2]
[345117484,1734033042331,-201.08838092,0.00027397,2]
[345117485,1734033042341,-500.0,0.00027397,7]
[345117486,1734033042351,-500.0,0.00027397,7]
[345117487,1734033042361,-500.0,0.00027397,7]
[345117488,1734033042371,-500.0,0.00027397,7]
[345117489,1734033042381,-500.0,0.00027397,7]
[345117490,1734033042391,-500.0,0.00027397,7]
[345117491,1734033042403,-500.0,0.00027397,7]
[345117492,1734033042412,-500.0,0.00027397,7]
[345117493,1734033042422,-500.0,0.00027397,7]
[345117494,1734033042432,-477.97469159,0.00027397,7]
[345117495,1734033042441,-500.0,0.00027397,7]
[345117496,1734033042450,-500.0,0.00027397,7]
[345117497,1734033042460,-1091.4,0.00027397,7]
[345117498,1734033042469,-500.0,0.00027397,7]
[345117499,1734033042479,-500.0,0.00027397,7]
[345117500,1734033042489,-500.0,0.00027397,7]
[345117501,1734033042498,-500.0,0.00027397,7]
[345117502,1734033042507,-500.0,0.00027397,7]
[345117503,1734033042516,-500.0,0.00027397,7]
[345117504,1734033042526,-500.0,0.00027397,7]
[345117505,1734033042535,-500.0,0.00027397,7]
[345117506,1734033042544,-562.41983349,0.00027397,7]
[345117507,1734033042554,-500.0,0.00027397,7]
[345117508,1734033042564,-500.0,0.00027397,7]
[345117509,1734033042573,-508.18,0.00027397,7]
[345117510,1734033042583,-1781.97,0.00027397,7]
[345117511,1734033042593,-513.79394949,0.00027397,7]
[345117512,1734033042603,-500.0,0.00027397,7]
[345117513,1734033042613,-500.0,0.00027397,7]
[345117514,1734033042623,-253.69385696,0.00027397,7]
[345117515,1734033042632,-500.0,0.00027397,7]
[345117516,1734033042642,-500.0,0.00027397,7]
[345117517,1734033042655,-695.42,0.00027397,7]
[345117518,1734033042665,-500.0,0.00027397,7]
[345117519,1734033042682,-500.0,0.00027397,7]
[345117520,1734033042692,-500.0,0.00027397,7]
[345117521,1734033042702,-500.0,0.00027397,7]
[345117522,1734033042711,-500.0,0.00027397,7]
[345117523,1734033042722,-500.0,0.00027397,7]
[345117524,1734033042732,-528.5,0.00027397,7]
[345117525,1734033042742,-500.0,0.00027397,7]
[345117526,1734033042754,-500.0,0.00027397,7]
[345117527,1734033042764,-500.0,0.00027397,7]
[345117528,1734033042775,-500.0,0.00027397,7]
[345117529,1734033042784,-500.0,0.00027397,7]
[345117530,1734033042793,-500.0,0.00027397,7]
[345117531,1734033042802,-500.0,0.00027397,7]
[345117532,1734033042812,-500.0,0.00027397,7]
[345117533,1734033042822,-500.0,0.00027397,7]
[345117534,1734033042831,-1917.25,0.00027397,7]
[345117535,1734033042842,-500.0,0.00027397,7]
[345117536,1734033042851,-500.0,0.00027397,7]
[345117537,1734033042861,-500.0,0.00027397,7]
[345117538,1734033042872,-500.0,0.00027397,7]
[345117539,1734033042882,-500.0,0.00027397,7]
[345117540,1734033042892,-511.78129388,0.00027397,7]
[345117541,1734033042904,-500.0,0.00027397,7]
[345117542,1734033042913,-500.0,0.00027397,7]
[345117543,1734033042923,-811.52,0.00027397,7]
[345117544,1734033042933,-500.0,0.00027397,7]
[345117545,1734033042943,-500.0,0.00027397,7]
[345117546,1734033042952,-500.0,0.00027397,7]
[345117547,1734033042962,-500.0,0.00027397,7]
[345117548,1734033042972,-1042.81,0.00027397,7]
[345117549,1734033042982,-500.0,0.00027397,7]
[345117550,1734033042991,-500.0,0.00027397,7]
[345117551,1734033043001,-500.0,0.00027397,7]
[345117552,1734033043011,-500.0,0.00027397,7]
[345117553,1734033043021,-504.50998316,0.00027397,7]
[345117554,1734033043031,-500.0,0.00027397,7]
[345117555,1734033043040,-117.45327386,0.00027397,7]
[345117590,1734033045331,-1160.761715,0.00026,2]
[345117592,1734033045342,-382.54672614,0.00027397,7]
[345117594,1734033045352,-648.17982719,0.00027397,7]
[345117595,1734033045361,-500.41073734,0.00027397,7]
[345117597,1734033045372,-500.0,0.00027397,7]
[345117599,1734033045382,-500.0,0.00027397,7]
[345117601,1734033045393,-500.0,0.00027397,7]
[345117602,1734033045408,-500.0,0.00027397,7]
[345117604,1734033045418,-1123.41,0.00027397,7]
[345117605,1734033045428,-500.0,0.00027397,7]
[345117606,1734033045438,-500.0,0.00027397,7]
[345117607,1734033045448,-500.0,0.00027397,7]
[345117608,1734033045458,-500.0,0.00027397,7]
[345117609,1734033045467,-940.72,0.00027397,7]
[345117610,1734033045477,-500.0,0.00027397,7]
[345117611,1734033045487,-757.75,0.00027397,2]
[345117612,1734033045498,-500.0,0.00027397,7]
[345117613,1734033045507,-465.47773712,0.00027397,7]
[345117614,1734033045516,-500.0,0.00027397,7]
[345117615,1734033045525,-371.74326122,0.00027397,7]
[345117812,1734033368519,163.12782,0.00013973,2]
[345117893,1734034232571,-803.8051069,0.00025408,2]
[345117895,1734034232580,-213.61984095,0.0002556,2]
[345117897,1734034232589,-8.37813332,0.00025575,2]
[345117899,1734034232601,-177.32177368,0.00025575,2]
[345117900,1734034232614,-250.888,0.0002566,2]
[345117902,1734034232623,-1464.371,0.0002566,2]
[345117904,1734034232632,-184.192597,0.00025668,2]
[345117906,1734034232642,-300.0,0.00025678,2]
[345117907,1734034232651,-300.0,0.00025678,2]
[345117909,1734034232660,-5354.9604064,0.00025679,2]
[345117911,1734034232669,-500.0,0.00025999,9]
[345117913,1734034232678,-500.0,0.00025999,9]
[345117914,1734034232687,-380.306,0.0002603,2]
[345117915,1734034232697,-310.04328701,0.00026396,2]
[345117917,1734034232706,-173.0,0.00026897,3]
[345117920,1734034232715,-184.192597,0.00026934,2]
[345117922,1734034232724,-9201.87812151,0.0002695,2]
[345117925,1734034232732,-171.0,0.00026981,3]
[345117928,1734034232741,-2395.89324744,0.00027197,2]
[345117931,1734034232753,-2537.3253549,0.00027197,2]
[345117934,1734034232762,-666.0,0.00027296,2]
[345117937,1734034232771,-7069.29888511,0.00027297,21]
[345117940,1734034232783,-2068.91176807,0.00027297,21]
[345117941,1734034232792,-396.47724838,0.00027297,7]
[345117945,1734034232801,-396.47724838,0.00027297,7]
[345117948,1734034232810,-396.47724838,0.00027297,7]
[345117951,1734034232819,-396.47724838,0.00027297,7]
[345117954,1734034232829,-396.47724838,0.00027297,7]
[345117956,1734034232838,-396.47724838,0.00027297,7]
[345117958,1734034232847,-396.47724838,0.00027297,7]
[345117960,1734034232857,-396.47724838,0.00027297,7]
[345117961,1734034232866,-396.47724838,0.00027297,7]
[345117962,1734034232875,-396.47724838,0.00027297,7]
[345117963,1734034232884,-396.47724838,0.00027297,7]
[345117964,1734034232892,-396.47724838,0.00027297,7]
[345117965,1734034232901,-396.47724838,0.00027297,7]
[345117966,1734034232910,-396.47724838,0.00027297,7]
[345117967,1734034232919,-396.47724838,0.00027297,7]
[345117968,1734034232928,-396.47724838,0.00027297,7]
[345117969,1734034232937,-396.47724838,0.00027297,7]
[345117970,1734034232946,-396.47724838,0.00027297,7]
[345117971,1734034232955,-396.47724838,0.00027297,7]
[345117972,1734034232964,-396.47,0.00027297,7]
[345117974,1734034232973,-594.71587257,0.00027297,7]
[345117976,1734034232982,-594.71587257,0.00027297,7]
[345117978,1734034232992,-594.71587257,0.00027297,7]
[345117980,1734034233002,-594.71587257,0.00027297,7]
[345117982,1734034233011,-594.71587257,0.00027297,7]
[345117984,1734034233023,-594.71587257,0.00027297,7]
[345117986,1734034233033,-594.71587257,0.00027297,7]
[345117988,1734034233043,-594.71587257,0.00027297,7]
[345117990,1734034233053,-208.95288115,0.00027297,7]
[345118030,1734034238596,-385.76299142,0.00027297,7]
[345118031,1734034238605,-479.12439607,0.00027297,7]
[345118032,1734034238618,-115.5914765,0.00027297,7]
[345118033,1734034238627,-594.71587257,0.00027297,7]
[345118034,1734034238636,-594.71587257,0.00027297,7]
[345118036,1734034238645,-594.71587257,0.00027297,7]
[345118038,1734034238655,-594.71587257,0.00027297,7]
[345118039,1734034238664,-594.71587257,0.00027297,7]
[345118040,1734034238672,-302.28843637,0.00027297,7]
[345118041,1734034238683,-292.4274362,0.00027297,7]
[345118042,1734034238693,-594.71587257,0.00027297,7]
[345118043,1734034238702,-594.71587257,0.00027297,7]
[345118044,1734034238711,-594.71587257,0.00027297,7]
[345118045,1734034238720,-213.06611237,0.00027297,7]
[345118046,1734034238729,-213.06611237,0.00027297,7]
[345118047,1734034238738,-213.06611237,0.00027297,7]
[345118048,1734034238747,-213.06611237,0.00027297,7]
[345118049,1734034238757,-213.06611237,0.00027297,7]
[345118050,1734034238766,-213.06611237,0.00027297,7]
[345118051,1734034238775,-213.06611237,0.00027297,7]
[345118052,1734034238784,-213.06611237,0.00027297,7]
[345118053,1734034238794,-213.06611237,0.00027297,7]
[345118054,1734034238803,-213.06611237,0.00027297,7]
[345118055,1734034238812,-213.06611237,0.00027297,7]
[345118056,1734034238822,-213.06611237,0.00027297,7]
[345118057,1734034238831,-213.06611237,0.00027297,7]
[345118058,1734034238840,-213.06611237,0.00027297,7]
[345118059,1734034238861,-213.06611237,0.00027297,7]
[345118060,1734034238879,-213.06611237,0.00027297,7]
[345118061,1734034238898,-213.06611237,0.00027297,7]
[345118062,1734034238918,-213.06611237,0.00027297,7]
[345118063,1734034238936,-213.06611237,0.00027297,7]
[345118064,1734034238954,-213.06,0.00027297,7]
[345118065,1734034238971,-319.59916855,0.00027297,7]
[345118066,1734034238986,-319.59916855,0.00027297,7]
[345118067,1734034239005,-319.59916855,0.00027297,7]
[345118068,1734034239026,-319.59916855,0.00027297,7]
[345118069,1734034239042,-319.59916855,0.00027297,7]
[345118070,1734034239057,-319.59916855,0.00027297,7]
[345118071,1734034239075,-319.59916855,0.00027297,7]
[345118072,1734034239091,-319.59916855,0.00027297,7]
[345118073,1734034239107,-319.59916855,0.00027297,7]
[345118074,1734034239125,-319.59916855,0.00027297,7]
[345118075,1734034239140,-319.59916855,0.00027297,7]
[345118076,1734034239155,-319.59916855,0.00027297,7]
[345118077,1734034239169,-319.59916855,0.00027297,7]
[345118078,1734034239183,-319.59916855,0.00027297,7]
[345118079,1734034239199,-319.59916855,0.00027297,7]
[345118080,1734034239213,-319.59916855,0.00027297,7]
[345118081,1734034239228,-319.59916855,0.00027297,7]
[345118082,1734034239242,-319.59916855,0.00027297,7]
[345118083,1734034239257,-319.59916855,0.00027297,7]
[345118084,1734034239271,-9490.92515446,0.00027297,2]
[345118096,1734034241053,-3961.7157452,0.00027297,2]
[345118097,1734034241064,-275.443296,0.000273,2]
[345118098,1734034241075,-500.0,0.000273,24]
[345118099,1734034241084,-39.12499899,0.00027373,2]
[345118100,1734034241107,-460.87500101,0.00027373,2]
[345118101,1734034241120,-500.0,0.00027373,2]
[345118102,1734034241129,-586.80329518,0.00027373,2]
[345118103,1734034241139,-200.58655768,0.00027373,2]
[345118104,1734034241148,-161.43746483,0.00027373,2]
[345118105,1734034241158,-500.0,0.00027373,2]
[345118106,1734034241167,-500.0,0.00027373,2]
[345118107,1734034241177,-925.27908791,0.0002739,7]
[345118108,1734034241187,-165.61275876,0.00027396,2]
[345118109,1734034241197,-164.86018702,0.00027396,2]
[345118110,1734034241206,-569.07235764,0.00027396,2]
[345118111,1734034241216,-153.86436359,0.00027396,2]
[345118112,1734034241225,-45093.39342646,0.00027397,2]
[345118133,1734034243782,-10000.0,0.00027397,2]
[345118134,1734034243793,-3850.0,0.00027397,2]
[345118164,1734034246585,-5994.56481144,0.00027397,2]
[345118167,1734034430636,163.12782,0.00013973,2]
[345118194,1734035343786,163.12782,0.00013973,2]
[345118227,1734035432714,-300.0,0.00023399,2]
[345118228,1734035432723,-3584.29999999,0.000234,2]
[345118229,1734035432734,-15027.48691413,0.000234,2]
[345118239,1734035438650,-3543.10707,0.000234,2]
[345118240,1734035438663,-2266.37252293,0.000234,2]
[345118241,1734035438675,-14177.49481004,0.000234,2]
[345118242,1734035438684,-4362.1596859,0.000249,2]
[345118243,1734035438694,-1297.32786574,0.00025,2]
[345118244,1734035438705,-9744.67213426,0.00025,2]
[345118245,1734035438714,-1095.65537,0.00025483,2]
[345118246,1734035438724,-4362.1596859,0.00025556,2]
[345118247,1734035438733,-420.0,0.00025739,2]
[345118248,1734035438743,-184.192597,0.00026,2]
[345118249,1734035438752,-378.828,0.0002603,2]
[345118250,1734035438762,-445.067836,0.00026055,2]
[345118251,1734035438771,-185.699907,0.0002618,2]
[345118252,1734035438781,-3151.92446984,0.00026211,2]
[345118253,1734035438793,-1210.23521606,0.00026211,2]
[345118254,1734035438804,-4362.1596859,0.00026867,2]
[345118255,1734035438819,-167.253881,0.00027065,2]